bitfinex-derivatives/quotes_BTCF0:USTF0_20251103
["timestamp","ask_amount","ask_price","bid_price","bid_amount"]
[1762191458087,0.014,107570.0,107560.0,0.8393304]
[1762191458288,0.1155814,107590.0,107580.0,0.1069004]
[1762191458487,0.16155509,107590.0,107580.0,0.4784704]
[1762191458692,1.66155509,107590.0,107580.0,0.4784733]
[1762191458893,1.66155509,107590.0,107580.0,0.3855]
[1762191459192,1.89351822,107590.0,107580.0,0.3855]
[1762191459694,1.87084453,107590.0,107580.0,0.3855]
[1762191459883,0.1155833,107580.0,107560.0,0.4677148]
[1762191460089,0.73164643,107580.0,107570.0,0.34901]
[1762191460296,0.1527906,107560.0,107550.0,0.02277]
[1762191460487,0.1530893,107550.0,107540.0,0.04533]
[1762191460794,0.1530893,107550.0,107530.0,0.8253466]
[1762191460795,0.1389179,107540.0,107530.0,0.8253466]
[1762191460992,0.35670103,107540.0,107530.0,0.73233]
[1762191461199,0.1389179,107540.0,107530.0,0.73233]
[1762191461995,0.1389352,107520.0,107510.0,0.1383639]
[1762191462192,0.04591,107520.0,107510.0,0.8253639]
[1762191462396,0.1389352,107520.0,107510.0,0.8253639]
[1762191463497,0.3608,107530.0,107520.0,0.1420252]
[1762191463498,0.1389335,107530.0,107520.0,0.1420252]
[1762191463697,0.04591,107530.0,107520.0,0.5028252]
[1762191463898,0.1389229,107540.0,107530.0,0.1383466]
[1762191464097,0.1389229,107540.0,107530.0,0.04533]
[1762191464297,0.1389229,107540.0,107530.0,0.37153]
[1762191464701,0.1389229,107540.0,107530.0,0.4645466]
[1762191464896,0.1389229,107540.0,107530.0,0.8253466]
[1762191465097,0.04591,107540.0,107530.0,0.8253466]
[1762191465699,0.1389179,107540.0,107530.0,0.8253466]
[1762191466201,0.1389179,107540.0,107530.0,0.37143]
[1762191466202,0.4997179,107540.0,107530.0,0.37143]
[1762191466391,0.1389179,107540.0,107530.0,0.37143]
[1762191466994,0.1389179,107540.0,107530.0,0.4644466]
[1762191467399,0.1389179,107540.0,107530.0,0.37143]
[1762191467798,0.1389179,107540.0,107530.0,0.4644466]
[1762191468002,0.1389179,107540.0,107530.0,0.37143]
[1762191468196,0.1389179,107540.0,107530.0,0.4644466]
[1762191468404,0.1389179,107540.0,107530.0,0.37143]
[1762191468902,0.1389179,107540.0,107530.0,0.4644466]
[1762191469605,0.1528479,107540.0,107530.0,0.4644466]
[1762191469800,0.1528479,107540.0,107530.0,0.8252466]
[1762191470406,0.1528479,107540.0,107530.0,0.4644466]
[1762191470701,0.1528479,107540.0,107530.0,0.37143]
[1762191471105,0.1512166,107530.0,107520.0,0.828844]
[1762191471502,0.1372866,107530.0,107520.0,0.828844]
[1762191471801,0.1512166,107530.0,107520.0,0.73582]
[1762191472112,0.36899973,107530.0,107520.0,0.37125]
[1762191472497,0.1512166,107530.0,107520.0,0.4642753]
[1762191472700,0.1512166,107530.0,107520.0,0.37125]
[1762191473206,0.1512166,107530.0,107510.0,0.40599]
[1762191473207,0.1512253,107520.0,107510.0,0.40599]
[1762191474101,0.1512253,107520.0,107510.0,0.3608]
[1762191474406,0.37811232,107520.0,107510.0,0.38403]
[1762191474801,0.1512253,107520.0,107510.0,0.40599]
[1762191475199,0.1603581,107520.0,107510.0,0.40599]
[1762191475400,0.1603581,107520.0,107510.0,0.04519]
[1762191475901,0.1512253,107520.0,107510.0,0.4990239]
[1762191476208,0.1512253,107520.0,107510.0,0.04519]
[1762191476804,0.1512253,107520.0,107510.0,0.02323]
[1762191477010,0.72980843,107520.0,107510.0,0.02323]
[1762191477209,0.1373039,107510.0,107500.0,0.04825962]
[1762191477401,0.35508703,107510.0,107500.0,0.04825962]
[1762191477605,0.1373039,107510.0,107500.0,0.51506212]
[1762191478611,0.04427,107510.0,107500.0,0.51506212]
[1762191478813,0.1156783,107520.0,107510.0,0.1511839]
[1762191479104,0.1512283,107520.0,107510.0,0.1511839]
[1762191479311,0.1512283,107520.0,107510.0,0.5119839]
[1762191480207,0.1372983,107520.0,107510.0,0.5119839]
[1762191480403,0.1512283,107520.0,107510.0,0.8381439]
[1762191480606,0.0582,107520.0,107510.0,0.8381439]
[1762191480809,0.04427,107520.0,107510.0,0.8381439]
[1762191481013,0.4773339,107540.0,107530.0,0.0985366]
[1762191481309,0.4677295,107550.0,107540.0,0.1511579]
[1762191481310,0.1372722,107550.0,107540.0,0.1511579]
[1762191481505,0.5119965,107560.0,107550.0,0.05815]
[1762191481708,0.53476954,107560.0,107550.0,0.04519]
[1762191481910,0.17396954,107560.0,107550.0,0.37131]
[1762191482811,0.17396954,107560.0,107550.0,0.4643093]
[1762191483205,0.02277304,107560.0,107550.0,0.4643093]
[1762191483406,0.13181499,107580.0,107570.0,0.092982]
[1762191483609,0.17395357,107580.0,107570.0,0.464292]
[1762191483812,0.16002357,107580.0,107570.0,0.37131]
[1762191484310,0.17395357,107580.0,107570.0,0.464292]
[1762191484503,0.16002357,107580.0,107570.0,0.464292]
[1762191484706,0.115632,107570.0,107560.0,0.38403]
[1762191484907,0.1372693,107550.0,107540.0,0.41895]
[1762191485412,0.1372693,107550.0,107540.0,0.8380379]
[1762191485614,0.1511962,107560.0,107550.0,0.04519]
[1762191485808,0.1739761,107560.0,107550.0,0.04519]
[1762191486118,0.1372693,107550.0,107540.0,0.37127]
[1762191486805,0.1372693,107550.0,107540.0,0.4642779]
[1762191487018,0.0929993,107550.0,107540.0,0.4642779]
[1762191488013,0.62016956,107560.0,107550.0,0.1162293]
[1762191488209,0.17399448,107560.0,107550.0,0.4989893]
[1762191488618,0.1511961,107560.0,107550.0,0.4989893]
[1762191489505,0.1511961,107560.0,107550.0,0.04519]
[1762191489709,0.1511961,107560.0,107550.0,0.4989893]
[1762191489910,0.1511961,107560.0,107550.0,0.04519]
[1762191490816,0.28098956,107560.0,107550.0,0.04519]
[1762191491017,0.28098956,107560.0,107550.0,0.1381893]
[1762191491211,0.1372661,107560.0,107550.0,0.4989893]
[1762191491619,0.1511961,107560.0,107550.0,0.40599]
[1762191491815,0.1511961,107560.0,107550.0,0.04519]
[1762191492313,0.1511961,107560.0,107550.0,0.1381892]
[1762191492314,0.02265,107560.0,107550.0,0.1381892]
[1762191492504,0.4537889,107570.0,107560.0,0.04519]
[1762191492505,0.1372589,107570.0,107560.0,0.04519]
[1762191492712,0.0929889,107570.0,107560.0,0.8378406]
[1762191493017,0.1511787,107580.0,107570.0,0.138172]
[1762191493617,0.1372487,107580.0,107570.0,0.138172]
[1762191494517,0.1372487,107580.0,107570.0,0.04919]
[1762191494720,0.1501887,107580.0,107570.0,0.04919]
[1762191494907,0.1501887,107580.0,107570.0,0.142172]
[1762191495107,1.72276646,107590.0,107580.0,0.1359033]
[1762191495313,1.592973,107590.0,107580.0,0.4747233]
[1762191495819,1.592973,107590.0,107570.0,0.004]
[1762191495820,0.1491633,107580.0,107570.0,0.004]
[1762191496120,0.63975676,107580.0,107570.0,0.004]
[1762191496421,0.5099633,107580.0,107570.0,0.139912]
[1762191496721,0.04325,107580.0,107570.0,0.500712]
[1762191496921,0.1362233,107580.0,107570.0,0.500712]
[1762191497124,0.02221,107580.0,107570.0,0.500712]
[1762191497623,0.02221,107580.0,107570.0,0.496712]
[1762191497815,0.1151833,107580.0,107570.0,0.496712]
[1762191498313,0.27895676,107580.0,107570.0,0.36885]
[1762191498619,0.25946302,107580.0,107570.0,0.04293]
[1762191498820,0.12966956,107580.0,107570.0,0.36885]
[1762191499021,0.12966956,107580.0,107570.0,0.04293]
[1762191499216,0.12966956,107580.0,107570.0,0.36885]
[1762191499409,0.25946302,107580.0,107570.0,0.04293]
[1762191499618,0.25946302,107580.0,107570.0,0.04693]
[1762191499816,0.25946302,107580.0,107570.0,0.37285]
[1762191500010,0.25946302,107580.0,107570.0,0.139912]
[1762191500323,0.25946302,107580.0,107570.0,0.465832]
[1762191500725,0.11672966,107580.0,107570.0,0.461832]
[1762191500910,0.11672966,107580.0,107570.0,0.36885]
[1762191501323,0.11672966,107580.0,107570.0,0.822632]
[1762191501519,2.04868566,107590.0,107580.0,0.1494633]
[1762191501725,1.9188922,107590.0,107580.0,0.1494633]
[1762191502025,1.5929722,107590.0,107580.0,0.1494633]
[1762191502226,1.5929722,107590.0,107580.0,0.5102633]
[1762191502528,1.5929722,107590.0,107580.0,0.05649]
[1762191502717,1.5929722,107590.0,107580.0,0.8361433]
[1762191503114,1.5929722,107590.0,107580.0,0.4753433]
[1762191503316,1.61557842,107590.0,107580.0,0.4793433]
[1762191503518,1.61557842,107590.0,107580.0,0.06049]
[1762191503724,1.61557842,107590.0,107580.0,0.8401033]
[1762191503923,1.5929647,107590.0,107580.0,0.8401033]
[1762191505013,0.7921314,107610.0,107580.0,0.8401033]
[1762191505014,0.4999974,107610.0,107600.0,0.05649]
[1762191505219,0.6524006,107610.0,107600.0,0.05649]
[1762191505925,0.6524006,107610.0,107600.0,0.04293]
[1762191506225,0.6524006,107610.0,107600.0,0.475286]
[1762191506414,0.52260714,107610.0,107600.0,0.475286]
[1762191506618,0.52260714,107610.0,107600.0,0.39333]
[1762191506820,0.6524006,107610.0,107600.0,0.39333]
[1762191507522,0.6524006,107610.0,107600.0,0.486286]
[1762191507826,0.2916006,107610.0,107600.0,0.39333]
[1762191508019,0.16180714,107610.0,107600.0,0.39333]
[1762191508620,0.2916006,107610.0,107600.0,0.39333]
[1762191508822,0.2916006,107610.0,107600.0,0.4862861]
[1762191509422,0.2916006,107610.0,107600.0,0.39333]
[1762191509615,0.6621806,107610.0,107600.0,0.33684]
[1762191509821,0.68716273,107610.0,107600.0,0.011]
[1762191510421,0.72053634,107610.0,107600.0,0.011]
[1762191510619,0.68716273,107610.0,107600.0,0.011]
[1762191510825,0.68716273,107610.0,107600.0,0.05549]
[1762191511018,0.32636273,107610.0,107600.0,0.05549]
[1762191511218,0.3013806,107610.0,107600.0,0.05549]
[1762191511418,0.32636273,107610.0,107600.0,0.05549]
[1762191511628,0.32636273,107610.0,107600.0,0.162326]
[1762191511629,0.3013806,107610.0,107600.0,0.162326]
[1762191511930,0.55736927,107610.0,107600.0,0.011]
[1762191512124,0.68716273,107610.0,107600.0,0.011]
[1762191512526,0.91948273,107610.0,107600.0,0.011]
[1762191512932,0.68716273,107610.0,107600.0,0.011]
[1762191513120,0.91948273,107610.0,107600.0,0.011]
[1762191513327,0.68716273,107610.0,107600.0,0.011]
[1762191513629,0.91948273,107610.0,107600.0,0.011]
[1762191513828,0.68716273,107610.0,107600.0,0.011]
[1762191514029,0.78968927,107610.0,107600.0,0.011]
[1762191514225,0.68716273,107610.0,107600.0,0.011]
[1762191515330,0.55736927,107610.0,107600.0,0.011]
[1762191515525,0.68716273,107610.0,107600.0,0.011]
[1762191515830,0.1359633,107580.0,107570.0,0.5121453]
[1762191516223,0.1359633,107580.0,107570.0,0.8378653]
[1762191516424,1.6359633,107580.0,107570.0,0.8378653]
[1762191516625,1.76575676,107580.0,107570.0,0.74489]
[1762191516822,1.76575676,107580.0,107570.0,0.837872]
[1762191517028,1.76575676,107580.0,107570.0,0.512152]
[1762191517029,1.6359633,107580.0,107570.0,0.512152]
[1762191517330,1.6359633,107580.0,107570.0,0.837872]
[1762191517832,0.1359633,107580.0,107570.0,0.837872]
[1762191518227,0.1409633,107580.0,107570.0,0.837872]
[1762191518428,1.6409633,107580.0,107570.0,0.837872]
[1762191519735,1.6541733,107580.0,107570.0,0.837872]
[1762191519934,1.66365003,107580.0,107570.0,0.837872]
[1762191520233,1.66365015,107580.0,107570.0,0.837872]
[1762191520437,1.66365015,107580.0,107570.0,0.74489]
[1762191520626,1.80665361,107580.0,107570.0,0.02252]
[1762191520826,1.80665361,107580.0,107570.0,0.3482]
[1762191521026,1.6409633,107580.0,107570.0,0.837832]
[1762191521226,1.66365452,107580.0,107570.0,0.837832]
[1762191521529,1.66765452,107580.0,107570.0,0.837832]
[1762191522231,0.02269122,107580.0,107570.0,0.837832]
[1762191522434,0.1359611,107590.0,107580.0,0.1513433]
[1762191522629,0.15865986,107590.0,107580.0,0.5121433]
[1762191523528,0.15865986,107590.0,107580.0,0.41917]
[1762191523729,0.15865986,107590.0,107580.0,0.5121433]
[1762191523928,0.15865986,107590.0,107580.0,0.1513433]
[1762191524634,0.16965986,107590.0,107580.0,0.1513433]
[1762191525136,0.16965986,107590.0,107580.0,0.5121433]
[1762191525337,0.16966223,107590.0,107580.0,0.5121433]
[1762191526030,0.03370113,107590.0,107580.0,0.5121433]
[1762191526339,0.1039647,107590.0,107580.0,0.5121433]
[1762191526544,1.511,107590.0,107580.0,0.5121433]
[1762191526732,0.011,107590.0,107580.0,0.64193676]
[1762191527339,1.511,107590.0,107580.0,0.64193676]
[1762191527732,1.511,107590.0,107580.0,0.87429676]
[1762191527930,0.011,107590.0,107580.0,0.87429676]
[1762191528137,0.003,107610.0,107600.0,0.148026]
[1762191528430,1.61864394,107610.0,107600.0,0.834466]
[1762191528627,1.52569654,107610.0,107600.0,1.32505946]
[1762191528935,0.02569654,107610.0,107600.0,1.32505946]
[1762191529132,0.02569654,107610.0,107600.0,1.195266]
[1762191529334,0.11864394,107610.0,107600.0,1.195266]
[1762191529534,0.11864394,107610.0,107600.0,1.203266]
[1762191530932,0.02569654,107610.0,107600.0,1.33301946]
[1762191532345,0.11864394,107610.0,107600.0,1.3423331]
[1762191532546,0.11864394,107610.0,107600.0,1.11954364]
[1762191532750,0.14045394,107610.0,107600.0,1.11954364]
[1762191533258,0.11864394,107610.0,107600.0,1.21249974]
[1762191533950,0.16256394,107610.0,107600.0,1.21249974]
[1762191534251,0.11864394,107610.0,107600.0,1.21249974]
[1762191535054,0.02569654,107610.0,107600.0,1.21249974]
[1762191535245,0.02569654,107610.0,107600.0,1.5746132]
[1762191535954,0.11864414,107610.0,107600.0,1.21249974]
[1762191536148,0.02569654,107610.0,107600.0,1.21249974]
[1762191536348,0.11864414,107610.0,107600.0,1.21249974]
[1762191536556,0.11864414,107610.0,107600.0,1.21245974]
[1762191537156,0.02569654,107610.0,107600.0,1.3422532]
[1762191537451,0.11801417,107630.0,107620.0,0.1501891]
[1762191537652,1.64056662,107630.0,107620.0,0.8365091]
[1762191538449,1.64056662,107630.0,107620.0,0.41805]
[1762191538650,1.77036008,107630.0,107620.0,0.38277]
[1762191538849,1.64056662,107630.0,107620.0,0.38277]
[1762191539146,1.64056662,107630.0,107620.0,0.8455091]
[1762191539651,1.64056662,107630.0,107620.0,0.8365091]
[1762191539853,1.64056662,107630.0,107620.0,0.74357]
[1762191540247,1.64056662,107630.0,107620.0,0.38277]
[1762191540452,1.64955662,107630.0,107620.0,0.38277]
[1762191540655,1.64056662,107630.0,107620.0,0.8365091]
[1762191540855,1.52255245,107630.0,107620.0,0.8365091]
[1762191541155,0.15940285,107630.0,107620.0,0.74357]
[1762191541356,0.18448042,107630.0,107620.0,0.74353]
[1762191541552,1.68448042,107630.0,107620.0,0.74353]
[1762191541758,1.65940285,107630.0,107620.0,0.8364691]
[1762191542051,1.82790388,107630.0,107620.0,0.37007]
[1762191542257,1.82790388,107630.0,107620.0,0.38273]
[1762191542452,1.82790388,107630.0,107620.0,0.8364691]
[1762191542755,0.1458491,107620.0,107610.0,0.984977]
[1762191542954,0.1504977,107610.0,107600.0,0.40539]
[1762191543159,0.17305015,107610.0,107600.0,0.40539]
[1762191543456,0.30284361,107610.0,107600.0,0.04459]
[1762191543664,0.17305015,107610.0,107600.0,0.04459]
[1762191543852,0.30284361,107610.0,107600.0,0.04459]
[1762191544052,0.15942015,107610.0,107600.0,0.1502064]
[1762191544651,0.13731015,107610.0,107600.0,0.1502064]
[1762191544856,0.15942015,107610.0,107600.0,0.05725]
[1762191545059,0.31224578,107610.0,107600.0,0.05725]
[1762191545351,0.30284361,107610.0,107600.0,0.05725]
[1762191545555,0.30284361,107610.0,107600.0,0.04459]
[1762191546159,0.62828361,107610.0,107600.0,0.04459]
[1762191546360,0.71583642,107610.0,107600.0,0.04459]
[1762191546559,0.72513208,107610.0,107600.0,0.04459]
[1762191546861,0.49849015,107610.0,107600.0,0.04459]
[1762191547053,0.49849015,107610.0,107600.0,0.1375464]
[1762191547253,0.49849015,107610.0,107600.0,0.04459]
[1762191547453,0.49849015,107610.0,107600.0,0.1375464]
[1762191547862,0.49849015,107610.0,107600.0,0.04459]
[1762191548457,0.53385015,107610.0,107600.0,0.04459]
[1762191548665,0.85929015,107610.0,107600.0,0.1502064]
[1762191548854,0.85929015,107610.0,107600.0,0.04459]
[1762191549054,0.8367377,107610.0,107600.0,0.04459]
[1762191549755,0.5112977,107610.0,107600.0,0.04459]
[1762191549963,0.1505146,107590.0,107580.0,0.37003]
[1762191550557,0.1505146,107590.0,107580.0,0.04459]
[1762191550754,0.1505146,107590.0,107580.0,0.05725]
[1762191550954,0.1505146,107590.0,107580.0,0.1502232]
[1762191551560,0.1505146,107590.0,107580.0,0.05725]
[1762191551759,0.1598773,107590.0,107580.0,0.04459]
[1762191551961,0.1598773,107590.0,107570.0,0.4664347]
[1762191551962,0.1505237,107580.0,107570.0,0.8364647]
[1762191552162,0.1368937,107580.0,107570.0,0.8364647]
[1762191552366,0.1368937,107580.0,107570.0,0.74349]
[1762191553259,0.1368937,107580.0,107570.0,0.8364724]
[1762191553459,0.1505237,107580.0,107570.0,0.73083]
[1762191553663,0.1505237,107580.0,107570.0,0.38269]
[1762191554769,0.1505237,107580.0,107570.0,0.4756724]
[1762191555269,0.1505237,107580.0,107570.0,0.38269]
[1762191556264,0.1505237,107580.0,107570.0,0.05725]
[1762191556856,0.1505237,107580.0,107570.0,0.04459]
[1762191557056,0.1457223,107570.0,107560.0,7.376e-05]
[1762191557257,0.72386857,107570.0,107560.0,7.376e-05]
[1762191557465,0.95626857,107570.0,107560.0,7.376e-05]
[1762191557666,0.1435696,107550.0,107540.0,0.37309848]
[1762191557865,0.1435696,107550.0,107540.0,0.74716848]
[1762191558065,0.1435696,107550.0,107540.0,0.84017678]
[1762191558266,0.1435696,107550.0,107540.0,0.74716848]
[1762191558470,0.1435696,107550.0,107540.0,0.42172848]
[1762191558770,0.13684144,107550.0,107540.0,0.51473678]
[1762191558970,0.13684144,107550.0,107540.0,0.06092848]
[1762191559169,0.15036144,107550.0,107540.0,0.06092848]
[1762191559966,0.51116144,107550.0,107540.0,0.02489848]
[1762191560166,0.72850771,107550.0,107540.0,0.00306848]
[1762191561074,0.72850771,107550.0,107540.0,0.02489848]
[1762191561264,0.72850771,107550.0,107540.0,0.00306848]
[1762191561969,0.13684144,107550.0,107540.0,0.15393678]
[1762191562267,9.174e-05,107550.0,107540.0,0.51473678]
[1762191562468,9.174e-05,107550.0,107540.0,0.84021678]
[1762191562669,9.174e-05,107550.0,107540.0,1.29004305]
[1762191563071,9.174e-05,107550.0,107540.0,1.07269678]
[1762191563767,0.7928878,107580.0,107570.0,0.04459]
[1762191563967,0.8366378,107580.0,107570.0,0.04459]
[1762191564170,0.4758378,107580.0,107570.0,0.04459]
[1762191564961,0.4758378,107580.0,107570.0,0.04759]
[1762191565464,0.4758378,107580.0,107570.0,0.04459]
[1762191567469,0.1372824,107570.0,107560.0,0.72985]
[1762191567667,0.1506224,107570.0,107560.0,0.74357]
[1762191567870,0.36796867,107570.0,107560.0,0.68628]
[1762191568378,0.36796867,107570.0,107560.0,0.36905]
[1762191568676,0.1467812,107560.0,107550.0,0.41809]
[1762191568880,0.1467812,107560.0,107550.0,0.74357]
[1762191569272,0.1372912,107560.0,107550.0,0.8365698]
[1762191569572,0.1372912,107560.0,107550.0,0.74357]
[1762191570371,0.1372912,107560.0,107550.0,0.8365696]
[1762191570676,0.1372912,107560.0,107550.0,0.74357]
[1762191571275,0.1372912,107560.0,107550.0,0.8365697]
[1762191571869,0.1372912,107560.0,107550.0,0.74357]
[1762191572372,0.1372912,107560.0,107550.0,0.72985]
[1762191572566,0.36430747,107560.0,107550.0,0.02189]
[1762191572764,0.1506389,107550.0,107540.0,0.89464848]
[1762191572972,0.1506389,107550.0,107540.0,0.04663848]
[1762191573272,0.36798517,107550.0,107540.0,0.00306848]
[1762191573475,0.72878517,107550.0,107540.0,0.00306848]
[1762191574072,0.73791247,107550.0,107540.0,0.00306848]
[1762191574276,0.5205662,107550.0,107540.0,0.00306848]
[1762191575276,0.5114389,107550.0,107540.0,0.04663848]
[1762191575482,0.84610084,107550.0,107540.0,0.04663848]
[1762191575872,1.06344711,107550.0,107540.0,0.00306848]
[1762191577775,1.06344711,107550.0,107520.0,0.74353]
[1762191577776,0.1477761,107530.0,107520.0,0.74353]
[1762191578081,1.6477761,107530.0,107520.0,0.8365548]
[1762191578283,1.6477761,107530.0,107520.0,0.74353]
[1762191578486,1.6477761,107530.0,107520.0,0.8365548]
[1762191579375,1.6477761,107530.0,107520.0,0.38273]
[1762191579575,1.6477761,107530.0,107520.0,0.8365548]
[1762191580077,1.6373162,107530.0,107520.0,0.90274436]
[1762191581881,1.6373162,107530.0,107520.0,0.8365548]
[1762191586181,1.6373162,107530.0,107520.0,0.74353]
[1762191586791,1.6373162,107530.0,107520.0,0.8365549]
[1762191587180,0.1063477,107540.0,107530.0,0.0930162]
[1762191587181,0.0930077,107540.0,107530.0,0.0930162]
[1762191587383,0.1385477,107540.0,107530.0,0.5115962]
[1762191587685,1.6517077,107540.0,107530.0,0.41858]
[1762191587877,1.6517077,107540.0,107530.0,0.5115962]
[1762191588080,2.0125077,107540.0,107530.0,0.04501]
[1762191588481,2.22985397,107540.0,107530.0,0.04501]
[1762191588683,0.1517163,107530.0,107520.0,0.73125]
[1762191588981,0.1517163,107530.0,107520.0,0.40581]
[1762191589590,0.1517163,107530.0,107520.0,0.4988356]
[1762191589887,0.1385563,107530.0,107520.0,0.57779516]
[1762191591186,0.04554,107530.0,107520.0,0.57779516]
[1762191591386,0.1385569,107530.0,107520.0,0.57779516]
[1762191591591,0.1496669,107530.0,107520.0,0.48476956]
[1762191591792,0.1496669,107530.0,107520.0,0.40581]
[1762191592493,0.1496669,107530.0,107520.0,0.4988356]
[1762191593285,0.1496669,107530.0,107520.0,0.40581]
[1762191593685,0.1496669,107530.0,107520.0,0.5116048]
[1762191594195,0.1385569,107530.0,107520.0,0.5116048]
[1762191594884,0.1385569,107530.0,107520.0,0.41858]
[1762191595090,0.1517169,107530.0,107520.0,0.41858]
[1762191595493,0.1517169,107530.0,107520.0,0.40581]
[1762191596393,0.1517169,107530.0,107520.0,0.4988356]
[1762191596598,0.1517169,107530.0,107520.0,0.5116056]
[1762191597095,0.1517169,107530.0,107520.0,0.41858]
[1762191597290,0.1517169,107530.0,107520.0,0.5116056]
[1762191597693,0.16104084,107530.0,107520.0,0.40581]
[1762191598397,0.1517169,107530.0,107520.0,0.40581]
[1762191598603,0.1517169,107530.0,107520.0,0.5116056]
[1762191599497,0.1517169,107530.0,107520.0,0.05778]
[1762191600493,0.1517169,107530.0,107520.0,0.04501]
[1762191600693,0.5125169,107530.0,107520.0,0.04501]
[1762191600991,0.1496756,107520.0,107510.0,0.04501]
[1762191601191,0.36702187,107520.0,107510.0,0.04501]
[1762191601391,0.1482436,107510.0,107500.0,0.74807516]
[1762191601593,0.1482436,107510.0,107500.0,0.84111746]
[1762191602598,0.1482436,107510.0,107500.0,0.74807516]
[1762191602793,0.36558987,107510.0,107500.0,0.04815516]
[1762191602988,0.72638987,107510.0,107500.0,0.04815516]
[1762191603194,0.72638987,107510.0,107500.0,0.02588516]
[1762191603410,0.72638987,107510.0,107500.0,0.00314516]
[1762191603791,0.1517516,107490.0,107480.0,0.04501]
[1762191603993,0.72989787,107490.0,107480.0,0.04501]
[1762191604296,0.5125516,107490.0,107480.0,0.04501]
[1762191604695,0.1517516,107490.0,107480.0,0.04501]
[1762191604900,0.15182714,107490.0,107480.0,0.04501]
[1762191605202,0.15182714,107490.0,107480.0,0.1380702]
[1762191605405,0.15182714,107490.0,107480.0,0.04501]
[1762191605897,0.36917341,107490.0,107480.0,0.04501]
[1762191606202,0.1386002,107480.0,107470.0,0.5116488]
[1762191606401,0.13867184,107490.0,107480.0,0.1508402]
[1762191606706,0.13867184,107490.0,107480.0,0.5116402]
[1762191608102,0.13867184,107490.0,107480.0,0.41858]
[1762191608305,0.15183184,107490.0,107480.0,0.41858]
[1762191608505,0.15183184,107490.0,107480.0,0.40581]
[1762191608807,0.2817628,107490.0,107480.0,0.40581]
[1762191609500,0.15183184,107490.0,107480.0,0.40581]
[1762191609712,0.15183184,107490.0,107480.0,0.41858]
[1762191610294,0.2817628,107490.0,107480.0,0.41858]
[1762191612007,0.6425628,107490.0,107480.0,0.04501]
[1762191612305,0.2817628,107490.0,107480.0,0.04501]
[1762191613900,0.2817628,107490.0,107480.0,0.40581]
[1762191614505,0.2817628,107490.0,107480.0,0.04501]
[1762191614506,0.6425628,107490.0,107480.0,0.04501]
[1762191614706,0.1512502,107480.0,107470.0,0.41885]
[1762191614909,0.60662116,107480.0,107470.0,0.4061]
[1762191616102,0.60662116,107480.0,107470.0,0.0453]
[1762191616312,0.6846388,107480.0,107470.0,0.4061]
[1762191616609,0.04510554,107490.0,107480.0,0.05805]
[1762191616805,0.13815704,107490.0,107480.0,0.9413245]
[1762191617205,0.04510554,107490.0,107480.0,1.0452988]
[1762191617406,7.554e-05,107490.0,107480.0,1.0452988]
[1762191618301,7.554e-05,107490.0,107480.0,0.9672093]
[1762191618512,0.4635016,107520.0,107510.0,0.1478442]
[1762191618700,0.4635016,107520.0,107510.0,0.74105]
[1762191619008,0.1380556,107520.0,107510.0,0.8340842]
[1762191619207,0.1150856,107520.0,107510.0,0.8340842]
[1762191619405,0.0930256,107520.0,107510.0,0.8340842]
[1762191620607,0.6423747,107520.0,107510.0,0.0453]
[1762191620808,0.1438543,107510.0,107500.0,0.0453]
[1762191621111,0.2737134,107510.0,107500.0,0.02226]
[1762191621312,0.6345134,107510.0,107500.0,0.02226]
[1762191621607,0.1517417,107490.0,107480.0,0.3608]
[1762191621810,0.1380904,107480.0,107470.0,0.4061]
[1762191622009,0.2679495,107480.0,107470.0,0.4061]
[1762191622209,0.1380904,107480.0,107470.0,0.4061]
[1762191622408,0.2679495,107480.0,107470.0,0.4061]
[1762191623010,0.5933495,107480.0,107470.0,0.4061]
[1762191623414,0.2679495,107480.0,107470.0,0.4061]
[1762191623611,0.5933495,107480.0,107470.0,0.4061]
[1762191626514,0.1151289,107470.0,107460.0,0.01582077]
[1762191626720,0.628758,107470.0,107460.0,0.04837077]
[1762191626923,0.628758,107470.0,107460.0,0.00307077]
[1762191627111,0.628758,107470.0,107460.0,0.04828077]
[1762191627306,0.1380989,107470.0,107460.0,0.42206077]
[1762191627713,0.1512989,107470.0,107460.0,0.42206077]
[1762191628511,0.1380989,107470.0,107460.0,0.06126077]
[1762191628721,0.50684085,107480.0,107470.0,0.05724]
[1762191629023,0.48464085,107480.0,107470.0,0.05724]
[1762191629224,0.1500889,107470.0,107460.0,0.02438077]
[1762191629416,0.279948,107470.0,107460.0,0.04733077]
[1762191629819,0.266748,107470.0,107460.0,0.06031077]
[1762191630019,0.273468,107470.0,107460.0,0.04733077]
[1762191630315,0.273468,107470.0,107460.0,0.06031077]
[1762191630622,0.273468,107470.0,107460.0,0.42111077]
[1762191631326,0.273468,107470.0,107460.0,0.51418837]
[1762191631518,0.273468,107470.0,107460.0,0.06031077]
[1762191632026,0.266748,107470.0,107460.0,0.15338837]
[1762191632324,0.02504127,107510.0,107500.0,0.05724]
[1762191632528,0.02504127,107520.0,107510.0,0.1502743]
[1762191632821,1.55842963,107540.0,107530.0,0.02131]
[1762191633027,0.05620508,107540.0,107530.0,0.04426]
[1762191633216,0.07968769,107540.0,107530.0,0.1372771]
[1762191633429,0.04785605,107540.0,107530.0,0.4980771]
[1762191633828,0.02503933,107540.0,107530.0,0.4980771]
[1762191634028,1.55842413,107550.0,107540.0,0.1372685]
[1762191634324,1.54816272,107550.0,107540.0,0.8234685]
[1762191635230,1.52312695,107550.0,107540.0,0.73046]
[1762191635418,1.54816272,107550.0,107540.0,0.8234682]
[1762191635919,1.54816272,107550.0,107540.0,0.73046]
[1762191636122,1.52312695,107550.0,107540.0,0.8234682]
[1762191636622,0.02312695,107550.0,107540.0,1.1858073]
[1762191637023,0.10524413,107570.0,107560.0,0.05724]
[1762191637224,0.09449127,107570.0,107560.0,0.74336]
[1762191637525,0.18747377,107570.0,107560.0,0.74336]
[1762191638624,0.05067127,107570.0,107560.0,0.8363511]
[1762191638830,0.16324746,107580.0,107570.0,0.1372425]
[1762191638831,0.02498358,107580.0,107570.0,0.1372425]
[1762191639128,0.0834709,107590.0,107580.0,0.1428538]
[1762191639129,0.03338836,107590.0,107580.0,0.1428538]
[1762191639329,0.20005984,107600.0,107590.0,0.04426]
[1762191639519,0.23334572,107600.0,107590.0,0.40506]
[1762191639718,0.32991894,107600.0,107590.0,0.40506]
[1762191639916,0.20005984,107600.0,107590.0,0.40506]
[1762191640118,0.14037189,107600.0,107590.0,0.40506]
[1762191640322,0.23332829,107600.0,107590.0,0.40506]
[1762191640934,0.14037189,107600.0,107590.0,0.498025]
[1762191641429,0.23332829,107600.0,107590.0,0.40506]
[1762191641816,0.18324575,107600.0,107590.0,0.40506]
[1762191643529,0.136785,107590.0,107580.0,0.40506]